[Event "16th EWICC 2015"]
[Site "Kutaisi"]
[Date "2015.06.02"]
[Round "6"]
[White "Zhukova, Natalia"]
[Black "Petrenko, Svetlana"]
[Result "1-0"]
[ECO "B38"]
[WhiteElo "2456"]
[BlackElo "2207"]
[Annotator "Robot 11"]
[PlyCount "145"]
[EventDate "2015.??.??"]
[EventCountry "GEO"]
[TimeControl "900+10"]

1. c4 {[%emt 0:01:24]} c5 {[%emt 0:00:04]} 2. Nf3 {[%emt 0:00:03]} Nc6 {[%emt
0:00:04]} 3. d4 {[%emt 0:00:02]} cxd4 {[%emt 0:00:05]} 4. Nxd4 {[%emt 0:00:02]}
g6 {[%emt 0:00:14]} 5. e4 {[%emt 0:00:05]} Bg7 {[%emt 0:00:03]} 6. Be3 {[%emt
0:00:03]} Nf6 {[%emt 0:00:17]} 7. Nc3 {[%emt 0:00:12]} d6 {[%emt 0:00:15]} 8.
Be2 {[%emt 0:00:04]} O-O {[%emt 0:00:07]} 9. O-O {[%emt 0:00:02]} Bd7 {[%emt 0:
00:37]} 10. Nb3 {[%emt 0:00:03]} b6 {[%emt 0:00:24]} 11. f4 {[%emt 0:00:34]}
Qc8 {[%emt 0:00:06]} 12. h3 {[%emt 0:00:16]} Na5 {[%emt 0:00:53]} 13. Nxa5 {
[%emt 0:00:11]} bxa5 {[%emt 0:00:01]} 14. Qd2 {[%emt 0:00:27]} Bc6 {[%emt 0:00:
12]} 15. Bf3 {[%emt 0:00:08]} Nd7 {[%emt 0:01:03]} 16. Nd5 {[%emt 0:01:04]} Re8
{[%emt 0:01:25]} 17. Qxa5 {[%emt 0:00:42]} Bxb2 {[%emt 0:02:03]} 18. Rab1 {
[%emt 0:00:01]} Bg7 {[%emt 0:00:04]} 19. Kh2 {[%emt 0:01:02]} Bxd5 {[%emt 0:00:
45]} 20. cxd5 {[%emt 0:00:13]} Qc3 {[%emt 0:01:47]} 21. Qxc3 {[%emt 0:00:35]}
Bxc3 {[%emt 0:00:02]} 22. Rfc1 {[%emt 0:00:27]} Ba5 {[%emt 0:00:06]} 23. Rb7 {
[%emt 0:01:51]} Nc5 {[%emt 0:01:29]} 24. Bxc5 {[%emt 0:00:02]} dxc5 {[%emt 0:
00:01]} 25. Rxc5 {[%emt 0:00:01]} Bb6 {[%emt 0:00:02]} 26. Rc6 {[%emt 0:00:11]}
Rab8 {[%emt 0:00:32]} 27. Rxb8 {[%emt 0:00:31]} Rxb8 {[%emt 0:00:02]} 28. e5 {
[%emt 0:00:14]} Be3 {[%emt 0:02:21]} 29. Rc4 {[%emt 0:00:02]} f6 {[%emt 0:00:
53]} 30. Re4 {[%emt 0:01:50]} Bc5 {[%emt 0:00:37]} 31. Rc4 {[%emt 0:00:22]} Be3
{[%emt 0:00:04]} 32. h4 {[%emt 0:00:44]} fxe5 {[%emt 0:00:53]} 33. fxe5 {[%emt
0:00:01]} Rf8 {[%emt 0:01:36]} 34. Kh3 {[%emt 0:00:16]} Bf4 {[%emt 0:00:35]}
35. Re4 {[%emt 0:00:02]} h6 {[%emt 0:00:10]} 36. Bg4 {[%emt 0:00:19]} Kg7 {
[%emt 0:00:12]} 37. g3 {[%emt 0:00:21]} Bd2 {[%emt 0:00:14]} 38. d6 {[%emt 0:
01:49]} exd6 {[%emt 0:00:01]} 39. exd6 {[%emt 0:00:01]} Ba5 {[%emt 0:00:17]}
40. Re7+ {[%emt 0:00:14]} Kf6 {[%emt 0:00:22]} 41. Rxa7 {[%emt 0:00:02]} Bb4 {
[%emt 0:00:25]} 42. d7 {[%emt 0:00:27]} Bd6 {[%emt 0:00:19]} 43. Be2 {[%emt 0:
00:27]} Rd8 {[%emt 0:00:12]} 44. Bb5 {[%emt 0:00:16]} g5 {[%emt 0:00:09]} 45.
Ra6 {[%emt 0:00:11]} Ke7 {[%emt 0:00:06]} 46. hxg5 {[%emt 0:00:55]} hxg5 {
[%emt 0:00:02]} 47. Kg4 {[%emt 0:00:01]} Rb8 {[%emt 0:00:11]} 48. a4 {[%emt 0:
00:16]} Rf8 {[%emt 0:00:16]} 49. Ra7 {[%emt 0:00:05]} Bc5 {[%emt 0:00:11]} 50.
Rc7 {[%emt 0:00:06]} Bb6 {[%emt 0:00:08]} 51. Rc2 {[%emt 0:00:54]} Rf2 {[%emt
0:00:17]} 52. Rc4 {[%emt 0:01:16]} Bd8 {[%emt 0:00:02]} 53. Kxg5 {[%emt 0:00:
15]} Kd6+ {[%emt 0:00:08]} 54. Kg6 {[%emt 0:00:25]} Rf6+ {[%emt 0:00:11]} 55.
Kg7 {[%emt 0:00:01]} Rf5 {[%emt 0:00:08]} 56. g4 {[%emt 0:00:02]} Rf2 {[%emt 0:
00:11]} 57. Rc6+ {[%emt 0:00:16]} Ke7 {[%emt 0:00:07]} 58. Rc5 {[%emt 0:00:30]}
Rf7+ {[%emt 0:00:15]} 59. Kg6 {[%emt 0:00:01]} Rf6+ {[%emt 0:00:02]} 60. Kh5 {
[%emt 0:00:02]} Rf2 {[%emt 0:00:14]} 61. Re5+ {[%emt 0:00:09]} Kd6 {[%emt 0:00:
05]} 62. Re8 {[%emt 0:00:06]} Kc7 {[%emt 0:00:02]} 63. g5 {[%emt 0:00:25]} Rg2
{[%emt 0:00:29]} 64. Rg8 {[%emt 0:00:11]} Rh2+ {[%emt 0:00:09]} 65. Kg6 {[%emt
0:00:08]} Rg2 {[%emt 0:00:15]} 66. Kf5 {[%emt 0:00:13]} Rf2+ {[%emt 0:00:13]}
67. Ke6 {[%emt 0:00:13]} Rf3 {[%emt 0:00:05]} 68. g6 {[%emt 0:00:09]} Rf6+ {
[%emt 0:00:12]} 69. Ke5 {[%emt 0:00:03]} Rf3 {[%emt 0:00:09]} 70. g7 {[%emt 0:
00:48]} Rg3 {[%emt 0:00:03]} 71. Kf4 {[%emt 0:00:55]} Rg2 {[%emt 0:00:20]} 72.
a5 {[%emt 0:00:06]} Rg6 {[%emt 0:00:13]} 73. a6 {[%emt 0:00:05]} 1-0

[Event "16th EWICC 2015"]
[Site "Kutaisi"]
[Date "2015.06.02"]
[Round "6"]
[White "Mikadze, Miranda"]
[Black "Vakhania, Alexandra"]
[Result "0-1"]
[ECO "B13"]
[WhiteElo "2233"]
[BlackElo "2130"]
[Annotator "Robot 11"]
[PlyCount "46"]
[EventDate "2015.??.??"]
[EventCountry "GEO"]
[TimeControl "900+10"]

1. e4 {[%emt 0:00:01]} c6 {[%emt 0:00:02]} 2. d4 {[%emt 0:00:07]} d5 {[%emt 0:
00:02]} 3. exd5 {[%emt 0:00:18]} cxd5 {[%emt 0:00:01]} 4. c4 {[%emt 0:00:01]}
Nf6 {[%emt 0:00:02]} 5. Nc3 {[%emt 0:00:01]} Nc6 {[%emt 0:00:01]} 6. Bg5 {
[%emt 0:00:06]} Be6 {[%emt 0:00:14]} 7. Bxf6 {[%emt 0:00:08]} exf6 {[%emt 0:00:
03]} 8. Nf3 {[%emt 0:00:05]} Bb4 {[%emt 0:00:36]} 9. Qb3 {[%emt 0:00:18]} O-O {
[%emt 0:00:20]} 10. O-O-O {[%emt 0:00:13]} Bxc3 {[%emt 0:03:56]} 11. Qxc3 {
[%emt 0:00:02]} a5 {[%emt 0:00:01]} 12. Kb1 {[%emt 0:00:44]} Nb4 {[%emt 0:00:
09]} 13. a3 {[%emt 0:00:54]} Bf5+ {[%emt 0:00:09]} 14. Ka1 {[%emt 0:00:01]}
dxc4 {[%emt 0:00:47]} 15. Bxc4 {[%emt 0:02:29]} Qd7 {[%emt 0:00:43]} 16. b3 {
[%emt 0:03:05]} b5 {[%emt 0:00:19]} 17. Kb2 {[%emt 0:00:19]} bxc4 {[%emt 0:00:
21]} 18. axb4 {[%emt 0:00:07]} axb4 {[%emt 0:00:30]} 19. Qxb4 {[%emt 0:00:17]}
c3+ {[%emt 0:00:47]} 20. Kxc3 {[%emt 0:00:36]} Rfc8+ {[%emt 0:00:04]} 21. Kd2 {
[%emt 0:00:03]} Rc2+ {[%emt 0:00:03]} 22. Ke3 {[%emt 0:00:22]} Qe6+ {[%emt 0:
00:21]} 23. Kf4 {[%emt 0:00:01]} Qe4+ {[%emt 0:00:05]} 0-1

[Event "16th EWICC 2015"]
[Site "Kutaisi"]
[Date "2015.06.02"]
[Round "6"]
[White "Schleining, Zoya"]
[Black "Sviridova, Vlada"]
[Result "1/2-1/2"]
[ECO "D10"]
[WhiteElo "2375"]
[BlackElo "2087"]
[Annotator "Robot 11"]
[PlyCount "107"]
[EventDate "2015.??.??"]
[EventCountry "GEO"]
[TimeControl "900+10"]

1. c4 {[%emt 0:00:02]} c6 {[%emt 0:00:00]} 2. d4 {[%emt 0:00:17]} d5 {[%emt 0:
00:01]} 3. cxd5 {[%emt 0:00:02]} cxd5 {[%emt 0:00:01]} 4. Bf4 {[%emt 0:00:02]}
Nf6 {[%emt 0:00:02]} 5. Nc3 {[%emt 0:00:02]} Nc6 {[%emt 0:00:03]} 6. e3 {[%emt
0:00:02]} Bf5 {[%emt 0:00:12]} 7. Nf3 {[%emt 0:00:16]} e6 {[%emt 0:00:03]} 8.
Bb5 {[%emt 0:00:03]} Bb4 {[%emt 0:01:48]} 9. Qa4 {[%emt 0:00:58]} Bxc3+ {[%emt
0:00:33]} 10. bxc3 {[%emt 0:00:02]} O-O {[%emt 0:00:50]} 11. Bxc6 {[%emt 0:00:
58]} bxc6 {[%emt 0:00:02]} 12. Ne5 {[%emt 0:00:17]} Ne4 {[%emt 0:04:07]} 13.
Rc1 {[%emt 0:00:35]} Qb6 {[%emt 0:02:00]} 14. O-O {[%emt 0:01:00]} Qb5 {[%emt
0:00:01]} 15. Qa3 {[%emt 0:01:58]} Nd2 {[%emt 0:01:04]} 16. Rfd1 {[%emt 0:00:
41]} Nc4 {[%emt 0:00:06]} 17. Nxc4 {[%emt 0:00:35]} Qxc4 {[%emt 0:00:02]} 18.
Rd2 {[%emt 0:01:01]} Rfc8 {[%emt 0:01:08]} 19. Bd6 {[%emt 0:00:50]} a5 {[%emt
0:00:21]} 20. Rcd1 {[%emt 0:00:46]} Qa6 {[%emt 0:00:17]} 21. Rb2 {[%emt 0:00:
41]} Bd3 {[%emt 0:00:18]} 22. Qc5 {[%emt 0:00:45]} Bb5 {[%emt 0:00:17]} 23. f3
{[%emt 0:00:51]} Qa7 {[%emt 0:00:16]} 24. e4 {[%emt 0:01:03]} Qxc5 {[%emt 0:00:
07]} 25. Bxc5 {[%emt 0:00:10]} f5 {[%emt 0:00:21]} 26. exf5 {[%emt 0:00:57]}
exf5 {[%emt 0:00:01]} 27. Re1 {[%emt 0:00:18]} Re8 {[%emt 0:00:22]} 28. Re5 {
[%emt 0:00:04]} Rxe5 {[%emt 0:00:33]} 29. dxe5 {[%emt 0:00:03]} Re8 {[%emt 0:
01:15]} 30. f4 {[%emt 0:00:01]} a4 {[%emt 0:00:01]} 31. a3 {[%emt 0:00:16]} g5
{[%emt 0:00:34]} 32. Kf2 {[%emt 0:00:51]} Kf7 {[%emt 0:00:05]} 33. Ke3 {[%emt
0:00:08]} g4 {[%emt 0:00:15]} 34. Kd4 {[%emt 0:00:35]} Ke6 {[%emt 0:00:02]} 35.
Rd2 {[%emt 0:00:17]} Rb8 {[%emt 0:00:16]} 36. Bb4 {[%emt 0:00:07]} Rc8 {[%emt
0:00:45]} 37. Kc5 {[%emt 0:00:03]} h5 {[%emt 0:00:15]} 38. Kb6 {[%emt 0:00:39]}
Rb8+ {[%emt 0:00:47]} 39. Kc7 {[%emt 0:00:17]} Ra8 {[%emt 0:00:14]} 40. c4 {
[%emt 0:00:46]} Bxc4 {[%emt 0:00:03]} 41. Kxc6 {[%emt 0:00:03]} Rc8+ {[%emt 0:
00:04]} 42. Kb7 {[%emt 0:00:03]} Rg8 {[%emt 0:00:06]} 43. Bd6 {[%emt 0:00:12]}
Rg7+ {[%emt 0:00:09]} 44. Kb6 {[%emt 0:00:02]} Rg8 {[%emt 0:00:03]} 45. Ka5 {
[%emt 0:00:33]} Ra8+ {[%emt 0:00:06]} 46. Kb4 {[%emt 0:00:01]} Ra7 {[%emt 0:00:
06]} 47. g3 {[%emt 0:00:29]} Ra8 {[%emt 0:00:06]} 48. Kc5 {[%emt 0:00:14]} Rc8+
{[%emt 0:00:12]} 49. Kb4 {[%emt 0:00:11]} Ra8 {[%emt 0:00:01]} 50. Rb2 {[%emt
0:00:21]} Bb3 {[%emt 0:00:18]} 51. Rb1 {[%emt 0:00:15]} Rc8 {[%emt 0:00:28]}
52. Bc5 {[%emt 0:00:10]} Ra8 {[%emt 0:00:17]} 53. Rc1 {[%emt 0:00:08]} Bc4 {
[%emt 0:00:03]} 54. Kc3 {[%emt 0:00:04] Kxe5} 1/2-1/2

[Event "16th EWICC 2015"]
[Site "Kutaisi"]
[Date "2015.06.02"]
[Round "6"]
[White "Stefanova, Antoaneta"]
[Black "Mammadova, Gulnar"]
[Result "1/2-1/2"]
[ECO "A06"]
[WhiteElo "2512"]
[BlackElo "2293"]
[Annotator "Robot 11"]
[PlyCount "59"]
[EventDate "2015.??.??"]
[EventCountry "GEO"]
[TimeControl "900+10"]

1. Nf3 {[%emt 0:00:02]} d5 {[%emt 0:00:06]} 2. g3 {[%emt 0:00:02]} Nf6 {[%emt
0:00:05]} 3. Bg2 {[%emt 0:00:01]} g6 {[%emt 0:00:10]} 4. O-O {[%emt 0:00:15]}
Bg7 {[%emt 0:00:02]} 5. d4 {[%emt 0:00:08]} O-O {[%emt 0:00:05]} 6. Be3 {[%emt
0:01:00]} Ng4 {[%emt 0:01:03]} 7. Bf4 {[%emt 0:00:05]} Nc6 {[%emt 0:00:19]} 8.
h3 {[%emt 0:00:51]} e5 {[%emt 0:02:02]} 9. Bg5 {[%emt 0:09:43]} f6 {[%emt 0:00:
05]} 10. Bc1 {[%emt 0:00:02]} Nh6 {[%emt 0:01:35]} 11. dxe5 {[%emt 0:00:02]}
fxe5 {[%emt 0:00:08]} 12. Ng5 {[%emt 0:00:12]} d4 {[%emt 0:01:21]} 13. c3 {
[%emt 0:00:01]} Nf7 {[%emt 0:00:13]} 14. Nxf7 {[%emt 0:00:48]} Rxf7 {[%emt 0:
00:05]} 15. Qb3 {[%emt 0:00:02]} Ne7 {[%emt 0:02:59]} 16. f4 {[%emt 0:00:33]}
e4 {[%emt 0:00:31]} 17. cxd4 {[%emt 0:00:13]} Qxd4+ {[%emt 0:00:24]} 18. Kh2 {
[%emt 0:00:04]} a5 {[%emt 0:03:40]} 19. Rd1 {[%emt 0:02:23]} Qf2 {[%emt 0:00:
39]} 20. Rd8+ {[%emt 0:00:48]} Bf8 {[%emt 0:00:01]} 21. Be3 {[%emt 0:00:03]}
Qxe2 {[%emt 0:00:12]} 22. Nc3 {[%emt 0:00:04]} Qxe3 {[%emt 0:00:13]} 23. Qc4 {
[%emt 0:00:05]} Kg7 {[%emt 0:01:38]} 24. Nxe4 {[%emt 0:00:53]} Be6 {[%emt 0:00:
09]} 25. Qxe6 {[%emt 0:00:04]} Rxd8 {[%emt 0:00:02]} 26. Qe5+ {[%emt 0:00:01]}
Kh6 {[%emt 0:00:58]} 27. Qg5+ {[%emt 0:00:02]} Kg7 28. Qe5+ {[%emt 0:00:01]}
Kh6 {[%emt 0:00:02]} 29. Qg5+ {[%emt 0:00:47]} Kg7 {[%emt 0:00:02]} 30. Qe5+ {
[%emt 0:00:01]} 1/2-1/2

[Event "16th EWICC 2015"]
[Site "Kutaisi"]
[Date "2015.06.02"]
[Round "6"]
[White "Zaksaite, Salomeja"]
[Black "Melashvili, Nino"]
[Result "1-0"]
[ECO "B01"]
[WhiteElo "2203"]
[BlackElo "2173"]
[Annotator "Robot 11"]
[PlyCount "61"]
[EventDate "2015.??.??"]
[EventCountry "GEO"]
[TimeControl "900+10"]

1. e4 {[%emt 0:00:01]} d5 {[%emt 0:00:01]} 2. exd5 {[%emt 0:00:05]} Nf6 {[%emt
0:00:01]} 3. d4 {[%emt 0:00:09]} Nxd5 {[%emt 0:00:01]} 4. Nf3 {[%emt 0:00:02]}
Bg4 {[%emt 0:00:24]} 5. Be2 {[%emt 0:00:05]} g6 {[%emt 0:01:51]} 6. c4 {[%emt
0:00:10]} Nb6 {[%emt 0:00:01]} 7. Be3 {[%emt 0:00:14]} Bg7 {[%emt 0:00:02]} 8.
Nc3 {[%emt 0:00:03]} O-O {[%emt 0:00:12]} 9. Rc1 {[%emt 0:00:05]} c6 {[%emt 0:
00:05]} 10. b3 {[%emt 0:00:09]} N8d7 {[%emt 0:01:24]} 11. O-O {[%emt 0:00:14]}
Qb8 {[%emt 0:01:08]} 12. h3 {[%emt 0:02:07]} Bxf3 {[%emt 0:00:24]} 13. Bxf3 {
[%emt 0:00:02]} e5 {[%emt 0:00:16]} 14. c5 {[%emt 0:00:03]} Nc8 {[%emt 0:00:24]
} 15. d5 {[%emt 0:00:09]} cxd5 {[%emt 0:00:30]} 16. Qxd5 {[%emt 0:01:24]} Nf6 {
[%emt 0:01:41]} 17. Qxb7 {[%emt 0:00:05]} Qxb7 {[%emt 0:01:17]} 18. Bxb7 {
[%emt 0:00:02]} Rb8 {[%emt 0:00:02]} 19. c6 {[%emt 0:00:02]} Nb6 {[%emt 0:00:
04]} 20. a4 {[%emt 0:05:19]} Nc8 {[%emt 0:04:48]} 21. b4 {[%emt 0:00:24]} a6 {
[%emt 0:00:19]} 22. b5 {[%emt 0:00:11]} axb5 {[%emt 0:00:03]} 23. axb5 {[%emt
0:00:04]} Nd6 {[%emt 0:00:07]} 24. Ba6 {[%emt 0:00:32]} Nf5 {[%emt 0:02:41]}
25. c7 {[%emt 0:01:55]} Ra8 {[%emt 0:00:05]} 26. b6 {[%emt 0:01:16]} Rxa6 {
[%emt 0:01:10]} 27. b7 {[%emt 0:00:02]} Raa8 {[%emt 0:00:00]} 28. bxa8=Q {
[%emt 0:01:13]} Rxa8 {[%emt 0:00:02]} 29. Rfd1 {[%emt 0:00:19]} Nd4 {[%emt 0:
00:24]} 30. Bxd4 {[%emt 0:00:10]} exd4 {[%emt 0:00:06]} 31. Rxd4 {[%emt 0:00:
03]} 1-0

[Event "16th EWICC 2015"]
[Site "Kutaisi"]
[Date "2015.06.02"]
[Round "6"]
[White "Javakhishvili, Lela"]
[Black "Paehtz, Elisabeth"]
[Result "1/2-1/2"]
[ECO "A42"]
[WhiteElo "2472"]
[BlackElo "2473"]
[Annotator "Robot 11"]
[PlyCount "130"]
[EventDate "2015.??.??"]
[EventCountry "GEO"]
[TimeControl "900+10"]

1. c4 {[%emt 0:00:02]} d6 {[%emt 0:00:03]} 2. d4 {[%emt 0:00:06]} g6 {[%emt 0:
00:03]} 3. e4 {[%emt 0:00:04]} Bg7 {[%emt 0:00:01]} 4. Nc3 {[%emt 0:00:03]} Nc6
{[%emt 0:00:10]} 5. d5 {[%emt 0:01:29]} Nd4 {[%emt 0:00:24]} 6. Be3 {[%emt 0:
00:11]} c5 {[%emt 0:00:02]} 7. dxc6 {[%emt 0:00:09]} Nxc6 {[%emt 0:00:03]} 8.
Qd2 {[%emt 0:00:08]} Nf6 {[%emt 0:00:07]} 9. f3 {[%emt 0:00:47]} O-O {[%emt 0:
00:05]} 10. Nge2 {[%emt 0:00:19]} a5 {[%emt 0:00:13]} 11. Nf4 {[%emt 0:00:11]}
a4 {[%emt 0:00:19]} 12. Rc1 {[%emt 0:00:02]} Nd7 {[%emt 0:00:16]} 13. Be2 {
[%emt 0:00:13]} Qa5 {[%emt 0:00:41]} 14. O-O {[%emt 0:00:11]} Nc5 {[%emt 0:00:
07]} 15. Rfd1 {[%emt 0:00:24]} Be6 {[%emt 0:01:37]} 16. h4 {[%emt 0:00:55]} Nb4
{[%emt 0:01:17]} 17. h5 {[%emt 0:00:25]} a3 {[%emt 0:00:10]} 18. bxa3 {[%emt 0:
02:34]} Nc6 {[%emt 0:01:00]} 19. hxg6 {[%emt 0:01:01]} hxg6 {[%emt 0:00:02]}
20. Nb5 {[%emt 0:02:26]} Qxd2 {[%emt 0:00:33]} 21. Rxd2 {[%emt 0:00:03]} Bc8 {
[%emt 0:00:09]} 22. Nd5 {[%emt 0:00:09]} f5 {[%emt 0:02:04]} 23. Nb6 {[%emt 0:
00:21]} Rb8 {[%emt 0:00:14]} 24. Nxc8 {[%emt 0:00:08]} Rbxc8 {[%emt 0:00:15]}
25. exf5 {[%emt 0:00:02]} gxf5 {[%emt 0:00:01]} 26. Bxc5 {[%emt 0:02:54]} dxc5
{[%emt 0:00:01]} 27. Rd7 {[%emt 0:00:10]} b6 {[%emt 0:01:10]} 28. Rb1 {[%emt 0:
00:53]} Rfd8 {[%emt 0:01:26]} 29. Rxd8+ {[%emt 0:00:30]} Rxd8 {[%emt 0:00:03]}
30. Rd1 {[%emt 0:00:05]} Nd4 {[%emt 0:00:41]} 31. Kf1 {[%emt 0:00:20]} Ra8 {
[%emt 0:00:14]} 32. Rd3 {[%emt 0:00:19]} Nxb5 {[%emt 0:00:24]} 33. cxb5 {[%emt
0:00:02]} Bd4 {[%emt 0:00:03]} 34. Bd1 {[%emt 0:00:33]} e5 {[%emt 0:00:12]} 35.
a4 {[%emt 0:01:06]} c4 {[%emt 0:00:05]} 36. Rd2 {[%emt 0:00:02]} Kg7 {[%emt 0:
01:22]} 37. f4 {[%emt 0:00:07]} Kf6 {[%emt 0:00:01]} 38. fxe5+ {[%emt 0:00:02]}
Kxe5 {[%emt 0:00:02]} 39. Re2+ {[%emt 0:00:27]} Kd6 {[%emt 0:00:53]} 40. Bc2 {
[%emt 0:00:11]} Rf8 {[%emt 0:00:02]} 41. g3 {[%emt 0:00:13]} Kc5 {[%emt 0:00:
07]} 42. a3 {[%emt 0:00:09]} Rg8 {[%emt 0:01:44]} 43. Rg2 {[%emt 0:00:12]} Rg5
{[%emt 0:00:22]} 44. Ke2 {[%emt 0:00:27]} Bb2 {[%emt 0:00:24]} 45. Kf3 {[%emt
0:00:01]} Bxa3 {[%emt 0:00:06]} 46. Re2 {[%emt 0:00:19]} Bb2 {[%emt 0:00:36]}
47. Re6 {[%emt 0:00:16]} Bd4 {[%emt 0:00:08]} 48. Kf4 {[%emt 0:00:13]} Rg4+ {
[%emt 0:00:16]} 49. Kf3 {[%emt 0:00:04]} Kb4 {[%emt 0:00:14]} 50. Bxf5 {[%emt
0:00:04]} Rg7 {[%emt 0:00:08]} 51. Re4 {[%emt 0:00:15]} Kc5 {[%emt 0:01:07]}
52. Re6 {[%emt 0:00:12]} Rf7 {[%emt 0:00:12]} 53. Ke4 {[%emt 0:00:04]} Bg1 {
[%emt 0:00:42]} 54. Rc6+ {[%emt 0:00:03]} Kb4 {[%emt 0:00:01]} 55. Rxc4+ {
[%emt 0:00:05]} Kxc4 {[%emt 0:00:07]} 56. Be6+ {[%emt 0:00:01]} Kb4 {[%emt 0:
00:46]} 57. Bxf7 {[%emt 0:00:02]} Kxa4 {[%emt 0:00:02]} 58. Be8 {[%emt 0:00:04]
} Kb4 {[%emt 0:00:01]} 59. g4 {[%emt 0:00:20]} Kc5 {[%emt 0:00:01]} 60. g5 {
[%emt 0:01:27]} Bd4 {[%emt 0:00:04]} 61. g6 {[%emt 0:00:04]} Bg7 {[%emt 0:00:
05]} 62. Kf5 {[%emt 0:00:08]} Kd6 {[%emt 0:00:01]} 63. Bc6 {[%emt 0:00:06]} Ke7
{[%emt 0:00:03]} 64. Bd5 {[%emt 0:00:08]} Kf8 {[%emt 0:00:04]} 65. Ke6 {[%emt
0:00:07]} Bd4 {[%emt 0:00:03]} 1/2-1/2

[Event "16th EWICC 2015"]
[Site "Kutaisi"]
[Date "2015.06.02"]
[Round "7"]
[White "Arabidze, Meri"]
[Black "Schleining, Zoya"]
[Result "1-0"]
[ECO "A21"]
[WhiteElo "2403"]
[BlackElo "2375"]
[Annotator "Robot 11"]
[PlyCount "131"]
[EventDate "2015.??.??"]
[EventCountry "GEO"]
[TimeControl "900+10"]

1. c4 {[%emt 0:00:02]} e5 {[%emt 0:00:07]} 2. Nc3 {[%emt 0:00:01]} Bb4 {[%emt
0:00:14]} 3. Nd5 {[%emt 0:00:06]} Bc5 {[%emt 0:00:12]} 4. Nf3 {[%emt 0:00:24]}
c6 {[%emt 0:00:22]} 5. Nc3 {[%emt 0:00:16]} d6 {[%emt 0:00:14]} 6. d4 {[%emt 0:
00:21]} exd4 {[%emt 0:00:04]} 7. Nxd4 {[%emt 0:00:02]} Nf6 {[%emt 0:00:17]} 8.
e3 {[%emt 0:00:13]} O-O {[%emt 0:00:08]} 9. Nb3 {[%emt 0:00:58]} Bb6 {[%emt 0:
00:34]} 10. Be2 {[%emt 0:00:01]} a5 {[%emt 0:00:15]} 11. O-O {[%emt 0:00:16]}
Re8 {[%emt 0:00:14]} 12. Qc2 {[%emt 0:00:40]} Na6 {[%emt 0:00:18]} 13. Rd1 {
[%emt 0:00:15]} a4 {[%emt 0:00:33]} 14. Nd4 {[%emt 0:00:23]} Nc5 {[%emt 0:00:
09]} 15. Rb1 {[%emt 0:00:15]} Qe7 {[%emt 0:01:03]} 16. b4 {[%emt 0:01:09]} axb3
{[%emt 0:00:02]} 17. axb3 {[%emt 0:00:01]} Nce4 {[%emt 0:01:16]} 18. Na4 {
[%emt 0:00:28]} Bc7 {[%emt 0:00:23]} 19. Bf3 {[%emt 0:02:39]} Ng5 {[%emt 0:00:
53]} 20. Be2 {[%emt 0:01:34]} Nge4 {[%emt 0:00:03]} 21. Bd3 {[%emt 0:00:57]} d5
{[%emt 0:01:11]} 22. f3 {[%emt 0:00:49]} Qd6 {[%emt 0:01:32]} 23. g3 {[%emt 0:
00:17]} Ng5 {[%emt 0:00:21]} 24. Be2 {[%emt 0:01:34]} Bd7 {[%emt 0:00:36]} 25.
cxd5 {[%emt 0:00:31]} cxd5 {[%emt 0:00:47]} 26. Nc5 {[%emt 0:00:35]} Bb6 {
[%emt 0:00:37]} 27. Nxd7 {[%emt 0:00:10]} Nxd7 {[%emt 0:00:08]} 28. Kg2 {[%emt
0:01:01]} Rac8 {[%emt 0:00:13]} 29. Qf5 {[%emt 0:00:24]} Re5 {[%emt 0:01:24]}
30. Qg4 {[%emt 0:00:05]} h5 {[%emt 0:00:25]} 31. Qh4 {[%emt 0:00:50]} Ne6 {
[%emt 0:00:22]} 32. Bd3 {[%emt 0:00:18]} Bd8 {[%emt 0:01:46]} 33. Nb5 {[%emt 0:
01:54]} Qb6 {[%emt 0:00:12]} 34. Qb4 {[%emt 0:00:03]} Nec5 {[%emt 0:00:19]} 35.
Bf1 {[%emt 0:00:06]} Ne6 {[%emt 0:00:52]} 36. Qd2 {[%emt 0:00:33]} h4 {[%emt 0:
00:28]} 37. Nd4 {[%emt 0:00:17]} hxg3 {[%emt 0:00:19]} 38. hxg3 {[%emt 0:00:05]
} Nxd4 {[%emt 0:00:11]} 39. Qxd4 {[%emt 0:00:27]} Rc2+ {[%emt 0:00:46]} 40. Rd2
{[%emt 0:00:00]} Qc6 {[%emt 0:00:27]} 41. Bb2 {[%emt 0:00:22]} Bb6 {[%emt 0:00:
16]} 42. Qd3 {[%emt 0:00:01]} Rxd2+ {[%emt 0:00:02]} 43. Qxd2 {[%emt 0:00:00]}
Bxe3 {[%emt 0:00:15]} 44. Qd3 {[%emt 0:00:17]} d4 {[%emt 0:00:04]} 45. Ra1 {
[%emt 0:00:12]} b5 {[%emt 0:00:18]} 46. Bxd4 {[%emt 0:00:25]} Bxd4 {[%emt 0:00:
38]} 47. Qxd4 {[%emt 0:00:00]} Rc5 {[%emt 0:00:18]} 48. Bd3 {[%emt 0:00:29]} g6
{[%emt 0:00:23]} 49. Be4 {[%emt 0:00:06]} Qf6 {[%emt 0:00:12]} 50. Ra8+ {[%emt
0:00:09]} Kg7 {[%emt 0:00:03]} 51. Qxd7 {[%emt 0:00:16]} Qb2+ {[%emt 0:00:06]}
52. Kh3 {[%emt 0:00:01]} Rh5+ {[%emt 0:00:05]} 53. Kg4 {[%emt 0:00:01]} Qf6 {
[%emt 0:00:31]} 54. f4 {[%emt 0:00:05]} Rh2 {[%emt 0:00:12]} 55. Qe8 {[%emt 0:
00:16]} Qc3 {[%emt 0:00:15]} 56. Qe5+ {[%emt 0:00:10]} Qxe5 {[%emt 0:00:02]}
57. fxe5 {[%emt 0:00:01]} Rb2 {[%emt 0:00:04]} 58. Bd5 {[%emt 0:00:07]} Rd2 {
[%emt 0:00:03]} 59. Rd8 {[%emt 0:00:15]} Rd4+ {[%emt 0:00:20]} 60. Kf3 {[%emt
0:00:03]} Kh6 {[%emt 0:00:06]} 61. Ke3 {[%emt 0:00:06]} Rd1 {[%emt 0:00:03]}
62. Rd7 {[%emt 0:00:07]} Kg5 {[%emt 0:00:03]} 63. Ke2 {[%emt 0:00:13]} Rd4 {
[%emt 0:00:02]} 64. Bc6 {[%emt 0:00:08]} Rb4 {[%emt 0:00:17]} 65. Rxf7 {[%emt
0:00:03]} Rxb3 {[%emt 0:00:13]} 66. e6 {[%emt 0:00:05]} 1-0